Cogmind - Beta 16.1 @@@ ROGUE MODE // 2026.04.25 @ 21:37:31 Player: kite Result: Destroyed by P-80 Master with Gamma Rifle Performance ------------- Evolutions (7) 3500 Regions Visited (18) 3600 Robots Destroyed (185) 925 Value Destroyed (8099) 8099 Prototype IDs (17) 340 Alien Tech Used (0) 0 Bonus (3887) 3887 TOTAL SCORE: 20351 Bonus ------- High Alert Combat Kills 1216 Follower Combat Kills 2429 Awakened Behemoth Slayer 1000 Entered Garrisons 200 Met Imprinter 300 Was Imprinted 300 Built Enhanced Grunts 300 A7 Reached Mainframe 300 Met R17 at Cetus 500 Friendly Fire -2658 Cogmind --------- Core Integrity 0/1300 Matter 295/300 Energy 93/100 System Corruption 17% Temperature Cool (0) Movement Hovering (70) Location -3/Research Parts ------- > --- POWER (3) -------- (None) > --- PROPULSION (6) --- Gyrokinetic Inverter Improved Gyrokinetic Inverter > --- UTILITY (8) ------ Advanced Signal Interpreter Advanced Terrain Scan Processor System Shield > --- WEAPON (4) ------- Nanosword > --- INVENTORY (5) ---- Field Recycling Unit (0) Tesla Rifle Tesla Rifle Fusion Bomb Launcher Peak State ------------ > --- POWER ------------ Light Antimatter Reactor Light Antimatter Reactor Particle Reactor > --- PROPULSION ------- Centrium Heavy Treads Centrium Heavy Treads Centrium Heavy Treads > --- UTILITY ---------- Advanced Cooling System Huge Storage Unit IFF Parser Advanced Target Analyzer Core Analyzer Advanced Transmission Jammer Centrium Medium Armor Plating Experimental Thermal Shield > --- WEAPON ----------- Advanced KE Penetrator Advanced KE Penetrator Advanced KE Penetrator Nanosword > --- INVENTORY -------- Antimatter Reactor Centrium Heavy Treads Centrium Heavy Treads Centrium Heavy Treads Advanced Power Amplifier Advanced Heat Sink Zionite Biocell Structural Scanner Advanced Signal Interpreter Transmission Jammer Centrium Medium Armor Plating High-powered Tractor Beam Advanced Variable Charge Gun HERF Cannon KE Penetrator Advanced KE Penetrator Advanced KE Penetrator Smartbomb Launcher Micro-nuke Launcher Improved Plasma Cutter CR-A16's Behemoth Slayer [Rating: 174] Favorites ----------- Power Quantum Reactor Engine Light Ion Engine Power Core Light Nuclear Core Reactor Quantum Reactor Propulsion Centrium Heavy Treads Treads Centrium Heavy Treads Leg Aluminum Leg Wheel Armored Huge Wheel Hover Unit Improved Gyrokinetic Inverter Flight Unit Field Propulsion Drive Utility Core Analyzer Device Improved Cooling System Storage Huge Storage Unit Processor Core Analyzer Hackware Makeshift Hacking Suite Protection Centrium Medium Armor Plating Weapon Advanced KE Penetrator Energy Gun Precision Beam Rifle Energy Cannon Heavy Plasma Cannon Ballistic Gun Advanced KE Penetrator Ballistic Cannon Assault Cannon Launcher Long-range Missile Launcher Special Weapon Improved Remote Datajack Impact Weapon Maul Slashing Weapon Nanosword Piercing Weapon CR-A16's Behemoth Slayer Build | -11 -10 -10 -10 -9 -8 -7 -7 -7 -7 -6 -6 -6 -6 -5 -4 -4 -4 -3 ------- Run | Yrd Mat Min Exi Min Mat Fac Low Low Zio Pro Fac Ext Cet Fac Fac Gar Fac Res Slots Evolved 14 | . . . . . 4 2 . . . . 2 . . 2 2 . . 2 Power 2 | . . . . . . . . . . . 1 . . . . . . 1 Propulsion 4 | . . . . . 1 . . . . . 1 . . 1 1 . . . Utility 6 | . . . . . 2 2 . . . . . . . 1 . . . 1 Weapon 2 | . . . . . 1 . . . . . . . . . 1 . . . Parts Attached 186 | 6 14 . . . 23 21 1 8 3 3 12 21 21 7 6 2 2 36 Power 31 | 1 1 . . . 2 1 . 3 1 . 1 6 4 . . 2 . 9 Engine 10 | 1 1 . . . . 1 . 2 . . 1 1 . . . . . 3 Core 7 | . . . . . 2 . . 1 . . . 4 . . . . . . Reactor 14 | . . . . . . . . . 1 . . 1 4 . . 2 . 6 Propulsion 30 | 2 2 . . . 9 4 . . . . 2 . 5 1 . . . 5 Treads 16 | 2 . . . . 7 . . . . . . . 5 1 . . . 1 Leg 1 | . . . . . 1 . . . . . . . . . . . . . Wheel 9 | . 2 . . . 1 4 . . . . 2 . . . . . . . Hover 3 | . . . . . . . . . . . . . . . . . . 3 Flight 1 | . . . . . . . . . . . . . . . . . . 1 Utility 65 | 1 5 . . . 5 8 1 4 1 2 5 6 5 2 5 . 2 13 Device 31 | . 1 . . . 4 4 1 1 1 1 2 3 3 2 1 . . 7 Storage 8 | 1 2 . . . . 2 . . . . . 2 1 . . . . . Processor 11 | . 1 . . . 1 2 . . . 1 . . . . 2 . 1 3 Hackware 6 | . . . . . . . . . . . 2 . . . 2 . 1 1 Protection 9 | . 1 . . . . . . 3 . . 1 1 1 . . . . 2 Artifact . | . . . . . . . . . . . . . . . . . . . Weapon 60 | 2 6 . . . 7 8 . 1 1 1 4 9 7 4 1 . . 9 Energy Gun 24 | 2 4 . . . 4 3 . . 1 . 2 3 1 . . . . 4 Energy Cannon 5 | . . . . . . . . . . . . 3 . 1 . . . 1 Ballistic Gun 13 | . 1 . . . 1 1 . . . . . 3 5 1 . . . 1 Ballistic Cannon 4 | . . . . . . 3 . 1 . . . . . . . . . . Launcher 7 | . . . . . 1 1 . . . 1 . . . 2 . . . 2 Special Weapon 1 | . . . . . . . . . . . . . . . 1 . . . Impact Weapon 1 | . 1 . . . . . . . . . . . . . . . . . Slashing Weapon 3 | . . . . . 1 . . . . . 1 . . . . . . 1 Piercing Weapon 2 | . . . . . . . . . . . 1 . 1 . . . . . Special Melee Weapon . | . . . . . . . . . . . . . . . . . . . Unidentified Prototypes 16 | . . . . . 1 1 . . . . . 3 5 3 . . 1 2 Corrupted Parts 4 | . . . . . . . . . . . . . 4 . . . . . System Corruption 22 | . . . . . . . . . . . . . 22 . . . . . Parts Lost 55 | . 5 . . . 2 . 1 2 . 1 5 1 . 1 . . . 37 Power 14 | . 1 . . . 1 . . 1 . . 1 1 . 1 . . . 8 Propulsion 11 | . 2 . . . 1 . 1 . . . 1 . . . . . . 6 Utility 15 | . . . . . . . . 1 . 1 2 . . . . . . 11 Weapon 15 | . 2 . . . . . . . . . 1 . . . . . . 12 Highest Loss Streak 26 | . 2 . . . 2 . 1 2 . 1 5 1 . 1 . . . 26 To Critical Strikes 2 | . . . . . . . . . . . . . . . . . . 2 Average Backups 18 | 1 9 12 13 13 14 18 21 20 21 21 22 22 22 20 20 20 20 12 Power 1 | . . . . . . 1 2 1 1 2 . 1 1 . . . 1 . Propulsion 2 | . 3 2 2 2 1 3 3 3 3 3 2 2 2 4 3 3 3 1 Utility 7 | . 1 4 4 4 6 6 9 8 9 8 9 10 10 8 10 9 9 5 Weapon 6 | . 2 6 7 7 6 6 7 7 8 8 10 8 7 7 5 6 6 4 Tool/Special . | . . . . . . . . . . . . . . . . . . . Unused Backups 43 | . 1 . . . 11 2 . . 4 . 1 6 5 . 6 . 2 5 Power 1 | . . . . . . . . . 1 . . . . . . . . . Propulsion 5 | . . . . . 2 1 . . . . . . 2 . . . . . Utility 19 | . . . . . 5 . . . 2 . 1 1 2 . 4 . 2 2 Weapon 17 | . 1 . . . 4 1 . . 1 . . 5 1 . 2 . . 2 Tool/Special 1 | . . . . . . . . . . . . . . . . . . 1 Average Slot Usage (%) 87 | . 97 100 100 100 98 91 91 91 92 92 81 85 83 85 83 80 83 57 Engine 4 | . 13 14 14 14 1 4 7 4 2 . 8 4 3 . . . . . Core 1 | . . . . . 7 2 . 2 . . . 6 . . . . . . Reactor 4 | . . . . . . . . . 4 7 3 1 8 10 10 10 10 6 Treads 8 | . 26 . . . 19 2 . . . . . . 10 14 14 15 15 8 Wheel 8 | . 1 28 28 28 5 12 14 15 15 15 12 13 1 . . . . . Device 14 | . . 14 14 14 17 15 15 7 11 21 15 19 19 23 19 15 14 9 Storage 7 | . 20 14 14 14 9 7 7 7 7 7 6 6 6 5 5 5 5 2 Processor 8 | . 1 . . . 5 21 23 16 15 7 6 6 6 5 5 10 10 9 Protection 4 | . 5 . . . 3 . . 12 10 8 6 . 4 5 4 5 5 3 Energy Gun 13 | . 22 28 28 28 18 16 21 22 23 21 18 7 4 . 2 . . 1 Ballistic Gun 5 | . . . . . 6 1 . . . . . 5 13 14 16 15 19 7 Peak Build Rating 174 | 6 11 10 10 10 29 50 50 50 56 57 67 74 125 130 157 157 157 174 Average Rating 71 | 4 8 10 10 10 23 46 49 48 53 55 64 70 105 127 153 154 154 107 On Entrance 62 | . 6 10 10 10 10 29 49 49 49 56 55 65 73 122 129 157 156 155 Avg Prop Armor Cover (%) 7 | . . . . . 5 8 . . . . . . . 8 . . . 6 Naked Turns 13 | . . . . . . . . . . . . . . . . . . 13 Heaviest Build 164 | 12 34 30 30 30 41 100 100 113 112 118 128 126 162 155 161 151 143 164 Greatest Support 240 | 40 40 20 20 20 60 60 38 38 38 38 56 56 160 188 240 240 240 240 Greatest Overweight (x) 8 | . 8 1 1 1 3 2 2 2 2 3 3 2 2 1 . . . 1 Average Overweight (x) 1 | . . 1 1 1 . 1 2 2 2 2 1 1 . . . . . . Largest Inventory Capacity 25 | 8 15 15 15 15 15 25 25 25 25 25 25 25 25 25 25 25 25 25 Average Capacity 21 | 6 14 15 15 15 15 21 25 25 25 25 25 25 25 25 25 25 25 17 Most Carried 25 | 4 15 13 13 13 15 25 25 24 25 25 25 25 25 25 25 25 25 25 Average Carried 20 | 1 9 12 13 13 14 20 24 22 24 24 24 24 24 24 24 23 24 14 Final Capacity 25 | 8 15 15 15 15 15 25 25 25 25 25 25 25 25 25 25 25 25 5 Final Carried 25 | 4 12 13 13 13 15 25 24 24 25 24 25 25 25 25 23 25 24 4 Class Distribution -------------------- 27% | Scavenger-Tank 19% | Mutant 15% | Tank 11% | Gunner 9% | Skirmisher 6% | Scavenger-Skirmisher 3% | Scavenger-Gunner Dominant Class ---------------- Mutant | -10/Materials Mutant | -10/Mines Mutant | -10/Exiles Mutant | -9/Mines Scavenger-Skirmisher | -8/Materials Skirmisher | -7/Factory Skirmisher | -7/Lower Caves Tank | -7/Lower Caves Tank | -7/Zion Gunner | -6/Proximity Caves Gunner | -6/Factory Gunner | -6/Extension Scavenger-Tank | -6/Cetus Scavenger-Tank | -5/Factory Scavenger-Tank | -4/Factory Scavenger-Tank | -4/Garrison Scavenger-Tank | -4/Factory Mutant | -3/Research Resources | -11 -10 -10 -10 -9 -8 -7 -7 -7 -7 -6 -6 -6 -6 -5 -4 -4 -4 -3 ----------- Run | Yrd Mat Min Exi Min Mat Fac Low Low Zio Pro Fac Ext Cet Fac Fac Gar Fac Res Matter Collected 6372 | 69 398 11 . . 380 358 341 139 40 230 110 672 364 532 794 736 129 1069 Remotely 3048 | . . . . . . . 260 . . 163 16 403 . 349 406 658 111 682 Salvage Created 7870 | . 557 11 . 14 973 321 213 83 . 686 58 801 262 375 520 941 338 1717 Parts 389 | . 36 3 . 2 49 25 11 8 . 20 4 29 11 14 19 50 14 94 Haulers Intercepted 6 | . . . . . 2 . . . . . . . . 2 1 . . 1 Recyclers Shooed 6 | . . . . . 2 . . . . . . 2 . . . . . 2 Parts Field Recycled . | . . . . . . . . . . . . . . . . . . . Retrieved Matter . | . . . . . . . . . . . . . . . . . . . Parts Self-Destructed 30 | . . . . . . . 7 5 . 18 . . . . . . . . Prevented . | . . . . . . . . . . . . . . . . . . . Parts Restored . | . . . . . . . . . . . . . . . . . . . Kills | -11 -10 -10 -10 -9 -8 -7 -7 -7 -7 -6 -6 -6 -6 -5 -4 -4 -4 -3 ------- Run | Yrd Mat Min Exi Min Mat Fac Low Low Zio Pro Fac Ext Cet Fac Fac Gar Fac Res Combat Hostiles Destroyed 138 | . 14 . . . 15 2 10 4 . 19 1 10 2 10 7 16 5 23 Melee 6 | . 2 . . . 1 . . . . . . . . . . . . 3 Guns 65 | . 11 . . . 10 2 3 1 . 4 . 6 2 1 6 9 1 9 Cannons 4 | . . . . . . . . . . . . 3 . . . . . 1 AOE 59 | . . . . . 4 . 7 3 . 15 . . . 9 1 6 4 10 Classes Destroyed 18 | . 5 1 . . 5 2 . . . 1 1 1 . 1 . . . 1 Worker 6 | . 1 . . 1 1 . . . . . . . . 1 . . . 2 Builder 12 | . 1 . . . 1 4 . . . . 1 . . . . . . 5 Tunneler 3 | . . 1 . . 1 . . . . . . . . . . . . 1 Hauler 6 | . . . . . 2 . . . . . . . . 2 1 . . 1 Recycler 5 | . . . . . 3 . . . . . . 1 . . . . . 1 Mechanic 1 | . . . . . . 1 . . . . . . . . . . . . Operator 3 | . . . . . . . . . . . . 1 . . 1 . 1 . Watcher 9 | . 1 . . . . 3 . . . . . 1 1 1 . . . 2 Swarmer 27 | . 3 . . . 4 . 7 3 . 3 . . . 7 . . . . Cutter 2 | . . . . . . . . . . . . . . . . . . 2 Saboteur 4 | . . . . . . . . . . 1 . . . . . 3 . . Grunt 51 | . 11 . . . 6 . 2 . . 8 . 5 . 2 5 6 3 3 Brawler 6 | . . . . . 1 . . . . 5 . . . . . . . . Sentry 14 | . . . . . 3 . 1 . . 2 . 4 . . 1 1 1 1 Specialist 1 | . . . . . . . . . . . . . . 1 . . . . Hunter 16 | . . . . . 1 . . . . . . . . . . 4 1 10 Programmer 12 | . . . . . . 2 . 1 . . . . . . 1 1 . 7 Behemoth 3 | . . . . . . . . . . . 1 1 . . . 1 . . Cetus Guard 2 | . . . . . . . . . . . . . 2 . . . . . Thug 1 | . . . . . . . . . . . . . . . . 1 . . Best Kill Streak 13 | . 3 1 . 1 6 2 7 3 . 13 2 3 3 7 2 3 4 8 Combat Bots Only 13 | . 3 . . . 6 1 7 3 . 13 1 3 2 5 2 3 4 6 Max Kills in Single Turn 5 | . 1 1 . 1 4 1 2 1 . 4 1 1 1 5 1 3 2 2 Gunslinging 1 | . . . . . . . . . . . . . . . . 1 . . Exploded 4 | . . . . . 4 . 2 1 . 4 . . . 3 1 3 2 2 Melee 1 | . 1 . . . 1 . . . . . . . . . . . . 1 Uniques/NPCs Destroyed 1 | . . . . . . . . . . . . . 1 . . . . . A7 (-6/Cetus) Combat | -11 -10 -10 -10 -9 -8 -7 -7 -7 -7 -6 -6 -6 -6 -5 -4 -4 -4 -3 -------- Run | Yrd Mat Min Exi Min Mat Fac Low Low Zio Pro Fac Ext Cet Fac Fac Gar Fac Res Hostile Shots Fired 1149 | . 60 . . . 62 19 34 17 . 32 39 101 11 40 17 78 7 632 Missed 366 | . 13 . . . 17 7 11 7 . 13 7 47 3 9 1 20 1 210 Hits 783 | . 47 . . . 45 12 23 10 . 19 32 54 8 31 16 58 6 422 Melee 4 | . . . . . . . . 1 . . . . . . . . . 3 Projectile 779 | . 47 . . . 45 12 23 9 . 19 32 54 8 31 16 58 6 419 AOE 2 | . . . . . . . . . . . . . . . . . . 2 Critical Strikes 29 | . . . . . 2 . 1 1 . . 2 1 . 3 . 2 . 17 Part Disruptions 1 | . . . . . . . . . . . . . . 1 . . . . Damage Taken 13352 | . 585 . . . 621 282 252 134 . 352 751 658 171 637 367 1177 119 7246 Core 2153 | . 156 . . . 52 89 63 33 . 72 67 123 . 28 64 100 . 1306 Absorbed by Shields 550 | . . . . . . . . . . . . 217 61 228 44 . . . Reduced by Siege Mode 220 | . . . . . . . . . . . . . 6 17 5 62 . 130 Ignored by Resistances 6 | . . . . . . . . 6 . . . . . . . . . . Core Remaining (%) 78 | 100 . . . 37 90 . . . . 63 . . 77 97 . . 85 . Volleys Fired 355 | . 35 3 . 1 37 17 14 8 . 17 1 39 10 23 34 39 9 68 Largest 4 | . 2 2 . 2 3 3 3 3 . 3 3 3 3 3 4 4 4 4 Hottest 345 | . 130 130 . 130 195 183 177 177 . 197 197 249 240 240 345 140 240 273 Shots Fired 823 | . 67 7 . 2 107 45 30 18 . 35 3 114 29 45 77 84 27 133 Gun 715 | . 67 7 . 2 106 42 23 15 . 28 3 74 29 38 74 75 25 107 Cannon 55 | . . . . . . . . . . . . 40 . . . . . 15 Launcher 53 | . . . . . 1 3 7 3 . 7 . . . 7 3 9 2 11 Special . | . . . . . . . . . . . . . . . . . . . Kinetic 364 | . 1 . . . 28 2 . . . . . 48 20 33 57 75 24 76 Thermal 325 | . 27 7 . 2 78 40 23 15 . 28 3 66 2 5 17 . 1 11 Explosive 53 | . . . . . 1 3 7 3 . 7 . . . 7 3 9 2 11 Electromagnetic 81 | . 39 . . . . . . . . . . . 7 . . . . 35 Robot Hit Streak 27 | . 8 2 . . 27 10 6 6 . 11 7 15 8 5 10 6 8 12 Robot Miss Streak 10 | . 2 2 . 2 3 3 4 3 . 1 . 5 2 3 3 4 2 10 Penetration Max 1 | . . . . . . . . . . . . 1 1 1 1 1 . 1 Secondary Targets 12 | . 1 . . . 1 . 2 . . 1 . 1 1 . . 1 . 4 Max Gunslinging Chain 1 | . 1 . . . 1 . 1 . . 1 . 1 1 . . 1 . 1 Shots Hit Robots 490 | . 46 2 . . 77 29 13 9 . 20 9 70 34 21 34 35 13 78 Core Hits 370 | . 22 1 . 1 36 19 14 4 . 47 5 35 15 29 25 38 13 66 Critical Kills 20 | . . . . . . . . . . . . . 1 1 5 7 1 5 Critical Parts Destroyed 24 | . 2 . . . . . . . . . . . 1 1 7 3 3 7 Critical Strikes 60 | . 2 . . . 4 . . . . 2 . 1 5 2 12 10 4 18 Burn 7 | . . . . . 4 . . . . 2 . 1 . . . . . . Destroy 42 | . . . . . . . . . . . . . 2 2 12 10 4 12 Corrupt 2 | . . . . . . . . . . . . . . . . . . 2 Smash 2 | . 2 . . . . . . . . . . . . . . . . . Sever 4 | . . . . . . . . . . . . . . . . . . 4 Impale 3 | . . . . . . . . . . . . . 3 . . . . . Melee Attacks 81 | . 7 . . . 9 15 . . . . 8 . 12 . . 1 . 29 Impact 11 | . 7 . . . 4 . . . . . . . . . . . . . Slashing 50 | . . . . . 5 15 . . . . 1 . . . . . . 29 Piercing 20 | . . . . . . . . . . . 7 . 12 . . 1 . . Sneak Attacks 27 | . 1 . . . 3 5 . . . . 1 . 12 . . . . 5 Combat Hostiles 1 | . . . . . . . . . . . . . . . . . . 1 Follow-up Attacks . | . . . . . . . . . . . . . . . . . . . Damage Inflicted 21650 | . 924 36 . 16 1844 943 766 372 . 1862 266 2032 1171 2394 1288 2058 624 5054 Guns 9106 | . 569 36 . 16 1125 493 217 161 . 284 56 1123 554 567 914 912 250 1829 Cannons 1193 | . . . . . . . . . . . . 909 . . . . . 284 Explosions 8057 | . 61 . . . 292 122 549 211 . 1578 . . . 1827 374 1146 374 1523 Melee 3186 | . 294 . . . 416 328 . . . . 210 . 617 . . . . 1321 Ramming 108 | . . . . . 11 . . . . . . . . . . . . 97 Kinetic 5391 | . 10 . . . 185 18 . . . . . 747 473 567 755 912 250 1474 Thermal 4136 | . 305 36 . 16 940 475 217 161 . 284 56 1285 24 . 159 . . 178 Explosive 7996 | . . . . . 292 122 549 211 . 1578 . . . 1827 374 1146 374 1523 Electromagnetic 833 | . 315 . . . . . . . . . . . 57 . . . . 461 Impact 551 | . 294 . . . 257 . . . . . . . . . . . . . Slashing 1808 | . . . . . 159 328 . . . . . . . . . . . 1321 Piercing 827 | . . . . . . . . . . . 210 . 617 . . . . . Highest Corruption 22 | . 2 2 2 2 . 2 2 2 . . . . 22 . . . . 17 Average Corruption 6 | . 2 2 2 2 . 2 2 1 . . . . 13 . . . . 13 Corruption Purged 2 | . . . . . . . . 2 . . . . . . . . . . Corruption Blocked . | . . . . . . . . . . . . . . . . . . . Effects 74 | . 3 4 2 . . 8 8 1 . . . . 18 . . . . 30 Message Errors 12 | . 1 . 1 . . 1 2 . . . . . 1 . . . . 6 Matter Fused 8 | . . 1 . . . . 2 . . . . . 2 . . . . 3 Heat Flow Errors 11 | . 1 . . . . . . . . . . . 5 . . . . 5 Energy Discharges 8 | . . 1 1 . . 2 1 . . . . . 1 . . . . 2 Parts Rejected 1 | . . . . . . 1 . . . . . . . . . . . . Data Loss (minor) 16 | . . . . . . 3 . 1 . . . . 6 . . . . 6 Data Loss (major) 8 | . 1 1 . . . 1 1 . . . . . 1 . . . . 3 Misfires 5 | . . 1 . . . . 2 . . . . . 2 . . . . . Alerts 1 | . . . . . . . . . . . . . . . . . . 1 Misdirections 3 | . . . . . . . . . . . . . . . . . . 3 Weapon Failures 1 | . . . . . . . . . . . . . . . . . . 1 Overload Shots 18 | . . . . . . . . . . . . . 1 5 10 . 1 1 Overflow Damage 1069 | . 156 . . . 171 68 26 23 . . . 3 152 104 . 45 . 321 Projectiles 3 | . . . . . . . . . . . . 3 . . . . . . Explosions 276 | . . . . . . . 26 23 . . . . . 104 . 45 . 78 Melee 790 | . 156 . . . 171 68 . . . . . . 152 . . . . 243 Knockbacks 3 | . 1 . . . 2 . . . . . . . . . . . . . Impact 3 | . 1 . . . 2 . . . . . . . . . . . . . Kinetic . | . . . . . . . . . . . . . . . . . . . Secondary . | . . . . . . . . . . . . . . . . . . . Self-Inflicted Damage 293 | . 57 . . . . 98 . . . . . . . . . . . 138 Shots 7 | . 2 . . . . 3 . . . . . . . . . . . 2 Rammed 8 | . . . . . 3 . . . . . . . . . . . . 5 Targets Rammed 8 | . . . . . 3 . . . . . . . . . . . . 5 Kicked . | . . . . . . . . . . . . . . . . . . . Crushed . | . . . . . . . . . . . . . . . . . . . Highest Temperature 544 | . 366 39 . 39 349 48 105 90 . 125 276 360 273 284 544 266 132 305 Average Temperature 91 | . 96 19 . 26 85 13 53 30 . 38 96 80 108 137 119 128 81 135 Received Heat Transfer 1908 | . 279 . . . 261 45 111 . . 78 426 202 6 98 105 87 . 210 Effects 8 | . . . . . 2 . . . . . . 1 . . 5 . . . Shutdowns 2 | . . . . . . . . . . . . 1 . . 1 . . . Interference 3 | . . . . . 2 . . . . . . . . . 1 . . . Matter Decay 1 | . . . . . . . . . . . . . . . 1 . . . Short Circuit 2 | . . . . . . . . . . . . . . . 2 . . . Siege Activations 10 | . . . . . . . . . . . . . 1 1 1 3 . 4 Total Turns 105 | . . . . . . . . . . . . . 3 6 5 41 . 50 Longest Duration 21 | . . . . . . . . . . . . . 3 6 5 19 . 21 Martial Activations . | . . . . . . . . . . . . . . . . . . . Shielding Activations . | . . . . . . . . . . . . . . . . . . . Robots Disrupted . | . . . . . . . . . . . . . . . . . . . Combat Hostiles . | . . . . . . . . . . . . . . . . . . . Robots Corrupted 4 | . 2 . . . 2 . . . . . . . . . . . . . Combat Hostiles 1 | . 1 . . . . . . . . . . . . . . . . . Parts Fried 11 | . 6 . . . 3 . . . . . . . . . . . . 2 Impact Corruptions 14 | . 7 . . . 6 . . . . . . . . . . . . 1 Robots Melted 1 | . . . . . . . . . . . . 1 . . . . . . Combat Hostiles 1 | . . . . . . . . . . . . 1 . . . . . . Parts Melted 12 | . . . . . 4 . 3 1 . . . 4 . . . . . . Heat Transferred 8524 | . 706 74 . 37 2405 925 481 296 . 755 124 2190 50 . 222 . . 259 Parts Sabotaged . | . . . . . . . . . . . . . . . . . . . Parts Stolen 1 | . . . . . . . . 1 . . . . . . . . . . Parts Stripped . | . . . . . . . . . . . . . . . . . . . Power Chain Reactions 2 | . 2 . . . . . . . . . . . . . . . . . Alert | -11 -10 -10 -10 -9 -8 -7 -7 -7 -7 -6 -6 -6 -6 -5 -4 -4 -4 -3 ------- Run | Yrd Mat Min Exi Min Mat Fac Low Low Zio Pro Fac Ext Cet Fac Fac Gar Fac Res Maximum Alert Level 4 | . . . . . . . . . . . . 2 2 4 3 4 3 3 Low Security (%) 55 | 100 100 100 . 100 100 100 . . . . 100 80 . 5 . . . . Level 1 14 | . . . . . . . . . . . . 15 59 4 51 . . 34 Level 2 18 | . . . . . . . . . . . . 4 40 28 41 26 71 53 Level 3 6 | . . . . . . . . . . . . . . 19 6 47 28 11 Level 4 3 | . . . . . . . . . . . . . . 42 . 25 . . Level 5 . | . . . . . . . . . . . . . . . . . . . High Security . | . . . . . . . . . . . . . . . . . . . Max Security . | . . . . . . . . . . . . . . . . . . . Peak Influence 1183 | . 115 9 . 5 179 45 . . . . 133 600 469 1177 879 1183 722 752 Initial 620 | . . 9 . . . 45 . . . . 133 . 328 207 528 598 620 363 Average 278 | . 28 . . . 79 6 . . . . 59 96 391 876 454 915 631 475 Influence Increases 7535 | . 462 5 . 5 483 163 235 100 . 390 70 1116 361 1208 859 625 242 1211 Destroy 0b10 Robot/C 3780 | . 280 . . . 300 40 200 80 . 380 40 540 160 440 300 340 100 580 Destroy 0b10 Robot/NC 245 | . 15 5 . 5 40 40 . . . . 5 20 10 25 15 . 5 60 Destroy Leader 682 | . 72 . . . 84 26 20 20 . 10 20 74 . 76 64 40 30 146 Allied During Kill 1428 | . . . . . . . . . . . 4 383 169 541 279 5 . 47 Successful Hack 83 | . 15 . . . 2 12 . . . . . 29 . . 14 7 4 . Select Force Hacks 90 | . 60 . . . 30 . . . . . . . . . . . . . Disable Machine 300 | . 15 . . . 15 15 . . . . . 45 15 30 15 90 15 45 Anti-Garrison Action 50 | . . . . . . . . . . . . . . . . 50 . . Destroy Structure 742 | . 5 . . . 12 30 . . . . 1 10 7 96 172 93 88 228 Partial Spotted 30 | . . . . . . . . . . . . 15 . . . . . 15 Lose Combat Pursuer 105 | . . . . . . . 15 . . . . . . . . . . 90 Influence Decreases 6791 | . 438 29 . 5 382 235 191 173 . 178 282 528 578 500 1083 297 733 1159 Entered New Map 2300 | . . 15 . . . 56 11 15 . . 79 . 260 164 551 257 563 329 Time Decay 3480 | . 398 14 . 5 362 179 170 138 . 168 150 410 238 246 452 . 170 380 Lost Part 540 | . 40 . . . 20 . 10 20 . 10 50 10 . 10 . . . 370 Lost Ally 471 | . . . . . . . . . . . 3 108 80 80 80 40 . 80 Squads Dispatched 34 | . 5 . . . 2 2 . . . 1 1 3 . 3 7 . 3 7 Investigation 9 | . 4 . . . 1 . . . . . . 2 . . 1 . 1 . Extermination 10 | . . . . . . 2 . . . . 1 . . . 3 . 1 3 Reinforcement 12 | . 1 . . . 1 . . . . . . 1 . 3 3 . 1 2 Assault 2 | . . . . . . . . . . 1 . . . . . . . 1 Garrison 1 | . . . . . . . . . . . . . . . . . . 1 Intercept . | . . . . . . . . . . . . . . . . . . . Searches Triggered . | . . . . . . . . . . . . . . . . . . . Construction Impeded . | . . . . . . . . . . . . . . . . . . . Haulers Reinforced 3 | . . . . . . . . . . . . . . 1 1 . . 1 Active Scanning Responses . | . . . . . . . . . . . . . . . . . . . Cargo Convoy Interrupts . | . . . . . . . . . . . . . . . . . . . Stealth | -11 -10 -10 -10 -9 -8 -7 -7 -7 -7 -6 -6 -6 -6 -5 -4 -4 -4 -3 --------- Run | Yrd Mat Min Exi Min Mat Fac Low Low Zio Pro Fac Ext Cet Fac Fac Gar Fac Res Distress Signals 13 | . 1 . . . . . . . . . . 3 2 4 . . 1 2 Communications Jammed 36 | . . . . . . . . . . . . . . . 2 . . 34 Distress Signals 35 | . . . . . . . . . . . . . . . 1 . . 34 Times Spotted 246 | . 26 . . . 27 12 8 5 . 19 4 32 9 19 11 14 6 54 Peak Tracking Total 10 | . 4 . . . 7 4 3 3 . 7 3 4 5 7 4 3 4 10 Tactical Retreats 4 | . . . . . . . 1 . . . . . . . . . . 3 Traps | -11 -10 -10 -10 -9 -8 -7 -7 -7 -7 -6 -6 -6 -6 -5 -4 -4 -4 -3 ------- Run | Yrd Mat Min Exi Min Mat Fac Low Low Zio Pro Fac Ext Cet Fac Fac Gar Fac Res Traps Triggered 11 | . 5 . . . . . . . . . . 3 . . 2 . . 1 Indirectly . | . . . . . . . . . . . . . . . . . . . Trap Hack Attempts . | . . . . . . . . . . . . . . . . . . . Triggered . | . . . . . . . . . . . . . . . . . . . Disarmed . | . . . . . . . . . . . . . . . . . . . Reprogrammed . | . . . . . . . . . . . . . . . . . . . Reused . | . . . . . . . . . . . . . . . . . . . Traps Extracted . | . . . . . . . . . . . . . . . . . . . Installed . | . . . . . . . . . . . . . . . . . . . Triggered . | . . . . . . . . . . . . . . . . . . . Machines | -11 -10 -10 -10 -9 -8 -7 -7 -7 -7 -6 -6 -6 -6 -5 -4 -4 -4 -3 ---------- Run | Yrd Mat Min Exi Min Mat Fac Low Low Zio Pro Fac Ext Cet Fac Fac Gar Fac Res Machines Disabled 25 | . 2 . . . 1 1 . . . 2 . 4 1 2 1 7 1 3 Max in Single Turn 2 | . 1 . . . 1 1 . . . 1 . 1 1 1 1 2 1 1 Garrison Relay 1 | . . . . . . . . . . . . . . . . 1 . . Machines Repaired . | . . . . . . . . . . . . . . . . . . . Machines Dismantled . | . . . . . . . . . . . . . . . . . . . Machines Sabotaged . | . . . . . . . . . . . . . . . . . . . Overloaded Fab Kills . | . . . . . . . . . . . . . . . . . . . Hacking | -11 -10 -10 -10 -9 -8 -7 -7 -7 -7 -6 -6 -6 -6 -5 -4 -4 -4 -3 --------- Run | Yrd Mat Min Exi Min Mat Fac Low Low Zio Pro Fac Ext Cet Fac Fac Gar Fac Res Machines Accessed 32 | . 6 . 1 . 3 5 . . . . 1 8 1 . 4 1 2 . Terminals 21 | . 4 . . . 1 5 . . . . 1 7 1 . 1 1 . . Fabricators 1 | . . . . . . . . . . . . . . . . . 1 . Repair Stations 1 | . . . . . . . . . . . . . . . 1 . . . Recycling Units 5 | . 2 . . . 1 . . . . . . 1 . . . . 1 . Scanalyzers 2 | . . . . . 1 . . . . . . . . . 1 . . . Garrison Access 1 | . . . . . . . . . . . . . . . 1 . . . Total Hacks 66 | . 11 . 4 . 6 8 . . . . 1 19 2 . 9 2 4 . Successful 28 | . 4 . 4 . 2 4 . . . . 1 7 . . 3 1 2 . Failed 37 | . 6 . . . 4 4 . . . . . 12 2 . 6 1 2 . Catastrophic 9 | . 3 . . . 1 3 . . . . . . 1 . 1 . . . Database Lockouts 1 | . 1 . . . . . . . . . . . . . . . . . Manual 73 | . 11 . . . 3 7 . . 1 . 8 11 1 10 9 3 1 8 Terminals 41 | . 9 . . . 2 8 . . . . 1 16 2 . 1 2 . . Fabricators 3 | . . . . . . . . . . . . . . . . . 3 . Repair Stations 1 | . . . . . . . . . . . . . . . 1 . . . Recycling Units 7 | . 2 . . . 1 . . . . . . 3 . . . . 1 . Scanalyzers 8 | . . . . . 3 . . . . . . . . . 5 . . . Garrison Access 2 | . . . . . . . . . . . . . . . 2 . . . Terminal Hacks 19 | . 2 . 4 . . 3 . . . . 1 7 . . 1 1 . . Record 4 | . . . 4 . . . . . . . . . . . . . . . Part Schematic 1 | . 1 . . . . . . . . . . . . . . . . . Open Door 9 | . . . . . . . . . . . 1 7 . . . 1 . . Open DSF 1 | . . . . . . . . . . . . . . . 1 . . . Branch Access Points 1 | . . . . . . 1 . . . . . . . . . . . . Hauler Manifests 1 | . . . . . . 1 . . . . . . . . . . . . Registered Components 1 | . 1 . . . . . . . . . . . . . . . . . Zone Layout 1 | . . . . . . 1 . . . . . . . . . . . . Fabricator Hacks 2 | . . . . . . . . . . . . . . . . . 2 . Load Schematic 1 | . . . . . . . . . . . . . . . . . 1 . Build 1 | . . . . . . . . . . . . . . . . . 1 . Repair Station Hacks . | . . . . . . . . . . . . . . . . . . . Recycling Unit Hacks . | . . . . . . . . . . . . . . . . . . . Scanalyzer 2 | . . . . . 1 . . . . . . . . . 1 . . . Retrieve Study 2 | . . . . . 1 . . . . . . . . . 1 . . . Garrison Access Hacks 1 | . . . . . . . . . . . . . . . 1 . . . Unlock Access 1 | . . . . . . . . . . . . . . . 1 . . . Unauthorized Hacks 4 | . 2 . . . 1 1 . . . . . . . . . . . . Terminals 1 | . . . . . . 1 . . . . . . . . . . . . Botnet 1 | . . . . . . 1 . . . . . . . . . . . . Fabricators . | . . . . . . . . . . . . . . . . . . . Repair Stations . | . . . . . . . . . . . . . . . . . . . Recycling Units 3 | . 2 . . . 1 . . . . . . . . . . . . . Tunnel 3 | . 2 . . . 1 . . . . . . . . . . . . . Scanalyzers . | . . . . . . . . . . . . . . . . . . . Garrison Access . | . . . . . . . . . . . . . . . . . . . Data Cores Recovered . | . . . . . . . . . . . . . . . . . . . Used . | . . . . . . . . . . . . . . . . . . . Hacking Detections 23 | . 3 . . . 2 4 . . . . . 6 1 . 4 1 2 . Full Trace Events 7 | . 3 . . . . . . . . . . 2 . . 1 . 1 . Feedback Events . | . . . . . . . . . . . . . . . . . . . Feedback Blocked . | . . . . . . . . . . . . . . . . . . . Robot Schematics Acquired 3 | . . . . . . . . . 3 . . . . . . . . . Robots Built . | . . . . . . . . . . . . . . . . . . . Authchips . | . . . . . . . . . . . . . . . . . . . Time . | . . . . . . . . . . . . . . . . . . . Total Robot Build Rating . | . . . . . . . . . . . . . . . . . . . Part Schematics Acquired 15 | . 1 . . . . . . . 14 . . . . . . . . . Parts Built . | . . . . . . . . . . . . . . . . . . . Authchips . | . . . . . . . . . . . . . . . . . . . Time 128 | . . . . . . . . . . . . . . . . . 128 . Total Part Build Rating . | . . . . . . . . . . . . . . . . . . . Part Studies Acquired 2 | . . . . . 1 . . . . . . . . . 1 . . . Parts Repaired . | . . . . . . . . . . . . . . . . . . . Time . | . . . . . . . . . . . . . . . . . . . Parts Recycled . | . . . . . . . . . . . . . . . . . . . Recycled Matter . | . . . . . . . . . . . . . . . . . . . Retrieved Matter . | . . . . . . . . . . . . . . . . . . . Retrieved Components . | . . . . . . . . . . . . . . . . . . . Parts Scanalyzed . | . . . . . . . . . . . . . . . . . . . Part Schematics Acquired . | . . . . . . . . . . . . . . . . . . . Parts Damaged . | . . . . . . . . . . . . . . . . . . . Bothacking | -11 -10 -10 -10 -9 -8 -7 -7 -7 -7 -6 -6 -6 -6 -5 -4 -4 -4 -3 ------------ Run | Yrd Mat Min Exi Min Mat Fac Low Low Zio Pro Fac Ext Cet Fac Fac Gar Fac Res Used RIF Installer . | . . . . . . . . . . . . . . . . . . . Robots Hacked . | . . . . . . . . . . . . . . . . . . . Non-combat . | . . . . . . . . . . . . . . . . . . . Combat . | . . . . . . . . . . . . . . . . . . . Robot Hacks Applied . | . . . . . . . . . . . . . . . . . . . Relay Couplers Released 12 | . . . . . . . . . . . . . . . . 9 . 3 Machine Destruction 5 | . . . . . . . . . . . . . . . . 5 . . Programmers 7 | . . . . . . . . . . . . . . . . 4 . 3 Fabnet Peak Effective % . | . . . . . . . . . . . . . . . . . . . Robots Rewired 7 | . . . . . . . . . . 1 . 4 . . . 2 . . Allies Hacked 1 | . . . . . . . . . . . . . . . 1 . . . Hacks Repelled . | . . . . . . . . . . . . . . . . . . . Allies | -11 -10 -10 -10 -9 -8 -7 -7 -7 -7 -6 -6 -6 -6 -5 -4 -4 -4 -3 -------- Run | Yrd Mat Min Exi Min Mat Fac Low Low Zio Pro Fac Ext Cet Fac Fac Gar Fac Res Total Allies 42 | . . . . . . . . . 4 1 3 18 5 2 2 2 . 5 Largest Group 14 | . . . . . . . . . 4 1 3 13 14 13 7 2 . 4 Highest-Rated Group 897 | . . . . . . . . . 158 32 84 599 897 751 471 96 . 412 Highest-Rated Ally 159 | . . . . . . . . . 40 32 32 159 159 96 96 96 . 103 Zionite Dispatches 8 | . . . . . . . . . . . 1 1 . 2 1 . . 3 Heavy 2 | . . . . . . . . . . . . . . . . . . 2 Light 1 | . . . . . . . . . . . . 1 . . . . . . Fire 1 | . . . . . . . . . . . 1 . . . . . . . Hacker 1 | . . . . . . . . . . . . . . . 1 . . . Explosive Resupply 1 | . . . . . . . . . . . . . . 1 . . . . Melee Resupply 1 | . . . . . . . . . . . . . . . . . . 1 Hacking Resupply 1 | . . . . . . . . . . . . . . 1 . . . . Total Orders 8 | . . . . . . . . . . . . . . 4 2 . . 2 STAY 1 | . . . . . . . . . . . . . . . . . . 1 DROP 5 | . . . . . . . . . . . . . . 4 . . . 1 COLLECT 2 | . . . . . . . . . . . . . . . 2 . . . Ally Attacks 319 | . . . . . . . . . . . 12 102 58 78 38 7 . 24 Total Damage 10082 | . . . . . . . . . . . 565 2666 1277 2573 1565 220 . 1216 Kills 60 | . . . . . . . . . . . 1 19 7 16 10 1 . 6 Allies Corrupted . | . . . . . . . . . . . . . . . . . . . Allies Melted . | . . . . . . . . . . . . . . . . . . . Intel | -11 -10 -10 -10 -9 -8 -7 -7 -7 -7 -6 -6 -6 -6 -5 -4 -4 -4 -3 ------- Run | Yrd Mat Min Exi Min Mat Fac Low Low Zio Pro Fac Ext Cet Fac Fac Gar Fac Res Active Infowar (turns) 8049 | . . . . . 929 1032 476 454 1076 10 137 665 156 535 1131 588 347 513 Optics 3659 | . . . . . 608 1032 476 454 1076 10 . . . . . . 3 . Sensors 1486 | . . . . . . 988 476 1 . . . . . . . . . 21 IFF 2815 | . . . . . . . . . . . . . . 515 1115 586 343 256 Structural 159 | . . . . . . 31 . . . . 2 . . 1 16 2 4 103 Seismic 902 | . . . . . 895 2 . . . . . . . . . . . 5 Jamming 3961 | . . . . . . . . . . . 135 665 156 535 1131 588 340 411 Robot Analysis Total . | . . . . . . . . . . . . . . . . . . . Derelict Logs Recovered 11 | . . 3 . . . . 3 3 1 1 . . . . . . . . Drone Launches . | . . . . . . . . . . . . . . . . . . . Drone Recoveries . | . . . . . . . . . . . . . . . . . . . Zionite Intel Received 4 | . . . . . . . . . . . 1 1 . 1 1 . . . Emergency Access 1 | . . . . . . . . . . . . 1 . . . . . . Unaware Analyses 2 | . . . . . . . . . . . 1 . . 1 . . . . Depthwide Sectors/0 1 | . . . . . . . . . . . . . . . 1 . . . Exploration | -11 -10 -10 -10 -9 -8 -7 -7 -7 -7 -6 -6 -6 -6 -5 -4 -4 -4 -3 ------------- Run | Yrd Mat Min Exi Min Mat Fac Low Low Zio Pro Fac Ext Cet Fac Fac Gar Fac Res Turns Passed 12538 | 80 1233 420 127 20 1030 1032 476 454 1076 959 384 1241 510 535 1131 588 347 895 Spaces Moved 7648 | 43 653 432 134 18 543 673 350 335 883 718 232 733 201 224 540 246 181 509 Core 29 | 1 2 . . . . . . . . . . . . . . . . 26 Treads 2561 | 42 608 . . . 357 25 . . . . . . 175 224 540 246 181 163 Legs . | . . . . . . . . . . . . . . . . . . . Wheels 4738 | . 43 432 134 18 186 648 350 335 883 718 232 733 26 . . . . . Hover 229 | . . . . . . . . . . . . . . . . . . 229 Flight 91 | . . . . . . . . . . . . . . . . . . 91 Fastest Speed 45 | 50 95 95 95 95 95 90 120 120 120 120 115 115 130 160 160 160 160 45 Average Speed 129 | 157 156 95 95 95 138 119 120 120 120 122 128 125 161 173 160 160 160 91 Slowest Speed 450 | 160 450 95 95 95 240 200 120 120 120 135 145 130 240 240 160 160 160 160 Overloaded Moves . | . . . . . . . . . . . . . . . . . . . Propulsion Burnouts . | . . . . . . . . . . . . . . . . . . . Robots Hopped 4 | . . . . . . . . . . . . . . . . . . 4 Potential Cave-ins . | . . . . . . . . . . . . . . . . . . . Cave-ins Triggered . | . . . . . . . . . . . . . . . . . . . Exploration Rate (%) 42 | 4 88 77 48 10 46 21 53 51 88 85 8 82 63 8 18 32 5 21 Regions Visited 18 Branch Regions 9 Pre-discovered Areas 10 | . 2 1 1 . 1 . . . . . . . . . 5 . . . Known Exits Taken 5 | . . . . . . 1 1 . . . 1 . 1 . 1 . . . Unknown Exits Taken 12 | 1 1 1 1 1 1 . . 1 1 1 . 1 . 1 . . 1 . Scrap Searched 7 | . . . . . . . . 2 2 3 . . . . . . . . Spaces Dug 38 | . . . . . . 10 . 7 . . 1 . . 7 7 . 1 5 Terrain Destroyed 606 | . 4 . . . 11 27 63 27 . 54 1 9 1 50 92 53 49 165 Melee 16 | . . . . . . 10 . . . . 1 . . . . . . 5 Projectile 98 | . . . . . . . . . . . . 9 1 20 42 2 17 7 AOE 491 | . 4 . . . 11 17 63 27 . 54 . . . 30 50 51 32 152 Terrain Rammed . | . . . . . . . . . . . . . . . . . . . Walls Destroyed . | . . . . . . . . . . . . . . . . . . . Machines Disabled . | . . . . . . . . . . . . . . . . . . . Actions | -11 -10 -10 -10 -9 -8 -7 -7 -7 -7 -6 -6 -6 -6 -5 -4 -4 -4 -3 --------- Run | Yrd Mat Min Exi Min Mat Fac Low Low Zio Pro Fac Ext Cet Fac Fac Gar Fac Res Total 9446 | 52 772 435 133 18 737 839 378 371 908 766 296 969 351 324 738 372 219 768 Wait 521 | . 38 . . . 59 44 5 11 2 12 13 53 48 35 86 32 4 79 Move 7623 | 42 652 431 133 17 542 672 349 334 882 717 231 732 200 223 540 245 180 501 Hop 4 | . . . . . . . . . . . . . . . . . . 4 Pick Up 145 | 4 11 1 . . 22 20 . 2 10 3 10 14 13 2 12 9 2 10 Fast Attach 121 | 6 15 . . . 12 10 . 5 1 . 2 11 12 9 4 2 5 27 Attach 80 | . 5 . . . 4 2 1 3 . 1 8 4 6 2 7 12 2 23 Detach 30 | . 1 . . . . 1 . . . . 2 3 5 3 3 6 1 5 Swap 211 | . 4 . . . 15 31 9 3 2 12 15 23 14 18 36 13 8 8 Drop 200 | . 4 . . . 34 27 . 5 11 2 6 29 31 9 16 9 8 9 Fire 355 | . 35 3 . 1 37 17 14 8 . 17 1 39 10 23 34 39 9 68 Melee 81 | . 7 . . . 9 15 . . . . 8 . 12 . . 1 . 29 Ram . | . . . . . . . . . . . . . . . . . . . Kick . | . . . . . . . . . . . . . . . . . . . Crush 8 | . . . . . 3 . . . . . . . . . . . . 5 Escape Stasis 24 | . . . . . . . . . . . . 24 . . . . . . Rewire 43 | . . . . . . . . . . 2 . 37 . . . 4 . . Trap . | . . . . . . . . . . . . . . . . . . . Miscellaneous . | . . . . . . . . . . . . . . . . . . . Route ------- -11/Scrapyard -10/Materials (discovered 5 exits: [*Mat x3] / *Min / [*Sub]) -10/Mines (discovered 2 exits: [*Mat] / *Exi) -10/Exiles (discovered 2 exits: [*Min x2]) -9/Mines -8/Materials -7/Factory (discovered 5 exits: *Fac / *Sto x2 / *Low x2) -7/Lower Caves -7/Lower Caves -7/Zion -6/Proximity Caves -6/Factory (discovered 3 exits: Fac / Low / *Ext) -6/Extension (discovered 2 exits: *Fac / *Cet) -6/Cetus (discovered 2 exits: *Fac / [*Arc]) -5/Factory -4/Factory -4/Garrison -4/Factory -3/Research History --------- Turn | Location | Event 16 | -11/Scrapyard | Discovered new exit (range 14) 81 | -11/Scrapyard | Entered Materials 306 | -10/Materials | Build established: Mutant 353 | -10/Materials | Discovered new exit (range 4) 434 | -10/Materials | Discovered new exit (range 16) 437 | -10/Materials | Central database locked down 617 | -10/Materials | Discovered new exit (range 16) 851 | -10/Materials | Discovered new exit (range 15) 984 | -10/Materials | Discovered new exit (range 15) 1257 | -10/Materials | Core integrity fell below 50% 1314 | -10/Materials | Entered Mines 1415 | -10/Mines | Learned Materials interactive machine intel 1424 | -10/Mines | Discovered new exit (range 15) 1586 | -10/Mines | Learned location of Zion (-7) 1593 | -10/Mines | Received a Rocket Launcher from a helpful Derelict 1670 | -10/Mines | Learned Materials stockpile data 1730 | -10/Mines | Deemed a non-threat by the Exiles lab entrance 1730 | -10/Mines | Discovered new exit (range 5) 1734 | -10/Mines | Entered Exiles 1747 | -10/Exiles | Discovered new exit (range 15) 1758 | -10/Exiles | Met 8R-AWN 1773 | -10/Exiles | Met EX-HEX 1812 | -10/Exiles | Met EX-DEC 1844 | -10/Exiles | Discovered new exit (range 14) 1861 | -10/Exiles | Entered Mines 1867 | -9/Mines | Discovered new exit (range 11) 1881 | -9/Mines | Entered Materials 1881 | -8/Materials | Evolved 4 slots: Propulsion x1, Utility x2, Weapon x1 1883 | -8/Materials | Loaded intel: 19 interactive machine locations 2580 | -8/Materials | Build established: Scavenger-Skirmisher 2802 | -8/Materials | Discovered new exit (range 20) 2911 | -8/Materials | Entered Factory 2911 | -7/Factory | Evolved 2 slots: Utility x2 3311 | -7/Factory | Identified exit to Storage 3311 | -7/Factory | Identified exit to Lower Caves 3501 | -7/Factory | Build established: Skirmisher 3940 | -7/Factory | Discovered new exit (range 11) 3943 | -7/Factory | Entered Lower Caves 3994 | -7/Lower Caves | Learned Factory trap positions 3995 | -7/Lower Caves | Learned 8 Factory zone layouts 4121 | -7/Lower Caves | Destroyed 7 combat bots 4286 | -7/Lower Caves | Learned location of 1 exit from Factory 4341 | -7/Lower Caves | Attracted the attention of an 0b10 checkpoint 4415 | -7/Lower Caves | Discovered new exit (range 3) 4417 | -7/Lower Caves | Identified exit to Lower Caves 4419 | -7/Lower Caves | Entered another Lower Caves area 4479 | -7/Lower Caves | Learned Factory non-interactive machine intel 4553 | -7/Lower Caves | Learned 4 Factory zone layouts 4573 | -7/Lower Caves | Found DCF Scrap (9 items) 4796 | -7/Lower Caves | Spotted B-75 Beast 4816 | -7/Lower Caves | Build established: Tank 4855 | -7/Lower Caves | Discovered new exit (range 9) 4873 | -7/Lower Caves | Entered Zion 4908 | -7/Zion | Found CR-A16's Pointy Stick 4996 | -7/Zion | Received a hallucinogenic algorithm 4996 | -7/Zion | Ran a hallucination algorithm 5057 | -7/Zion | Discovered new exit (range 14) 5128 | -7/Zion | Learned Factory garrison access intel 5712 | -7/Zion | Met Imprinter 5731 | -7/Zion | Imprinted 5733 | -7/Zion | Declared Zion's savior 5873 | -7/Zion | Learned Factory emergency access door positions 5949 | -7/Zion | Entered Proximity Caves 6239 | -6/Proximity Caves | Learned 4 Factory zone layouts 6294 | -6/Proximity Caves | Build established: Gunner 6385 | -6/Proximity Caves | Attracted the attention of an 0b10 checkpoint 6728 | -6/Proximity Caves | Attracted the attention of an 0b10 outpost 6777 | -6/Proximity Caves | Destroyed 13 combat bots 6880 | -6/Proximity Caves | Discovered new exit (range 13) 6908 | -6/Proximity Caves | Entered Factory 6908 | -6/Factory | Accompanied by 1 ally 6908 | -6/Factory | Evolved 2 slots: Power x1, Propulsion x1 6909 | -6/Factory | Identified exit to Extension 6910 | -6/Factory | Identified exit to Factory 6911 | -6/Factory | Identified exit to Lower Caves 6912 | -6/Factory | Loaded intel: 119 trap records 6914 | -6/Factory | Loaded intel: 223 non-interactive machine locations 6915 | -6/Factory | Loaded intel: 3 garrison access locations 7078 | -6/Factory | Spotted B-75 Beast 7114 | -6/Factory | Revealed the true nature of CR-A16's Pointy Stick 7122 | -6/Factory | Destroyed B-75 Beast 7152 | -6/Factory | Lost 5 parts (1p1n2u1w) 7240 | -6/Factory | Retrieved Zion intel report: Unaware Analyses 7241 | -6/Factory | Zion Fire squad teleported in 7292 | -6/Factory | Entered Extension 7292 | -6/Extension | Accompanied by 3 allies 7617 | -6/Extension | Rescued a captive Derelict 7625 | -6/Extension | Rescued a captive Derelict 7652 | -6/Extension | Rescued a captive Derelict 7653 | -6/Extension | Rescued a captive Derelict 7773 | -6/Extension | Rescued a captive Derelict 7774 | -6/Extension | Rescued a captive Derelict 7785 | -6/Extension | Rescued a captive Derelict 7807 | -6/Extension | Rescued a captive Derelict 7807 | -6/Extension | Rescued a captive Derelict 7854 | -6/Extension | Build established: Hacker-Gunner 7907 | -6/Extension | Warlord forces began an assault 7950 | -6/Extension | Spotted B-75 Beast 7962 | -6/Extension | Destroyed B-75 Beast 7973 | -6/Extension | Spotted B-75 Beast 7993 | -6/Extension | Allies destroyed B-75 Beast 8056 | -6/Extension | Rescued A7 8093 | -6/Extension | Rescued a captive Derelict 8094 | -6/Extension | Rescued a captive Derelict 8162 | -6/Extension | Retrieved Zion intel report: Emergency Access 8163 | -6/Extension | Zion Light squad teleported in 8190 | -6/Extension | Build established: Gunner 8320 | -6/Extension | Found Prototype Protection 8320 | -6/Extension | Identified Zio. Weapon Casing 8461 | -6/Extension | Discovered exit to Factory (range 10) 8463 | -6/Extension | Discovered new exit (range 6) 8474 | -6/Extension | Disrupted transfer network 8530 | -6/Extension | Terminal network hard line cut 8533 | -6/Extension | Entered Cetus 8533 | -6/Cetus | Accompanied by 13 allies (A7) 8538 | -6/Cetus | Acquired a Cetus Manufacturing Module code from A7 8556 | -6/Cetus | Spotted Cetus Guard 8556 | -6/Cetus | Spotted Cetus Guard 8557 | -6/Cetus | Destroyed Cetus Guard 8559 | -6/Cetus | Spotted Cetus Guard 8559 | -6/Cetus | Allies destroyed Cetus Guard 8560 | -6/Cetus | Spotted Cetus Guard 8563 | -6/Cetus | Destroyed Cetus Guard 8576 | -6/Cetus | Allies destroyed Cetus Guard 8604 | -6/Cetus | Lost 3 allies 8690 | -6/Cetus | Started Cetus Manufacturing Module 8715 | -6/Cetus | Manufactured an Enhanced Grunt 8720 | -6/Cetus | Escorted A7 to Cetus Mainframe 8740 | -6/Cetus | Manufactured an Enhanced Grunt 8748 | -6/Cetus | Discovered new exit (range 15) 8765 | -6/Cetus | Manufactured an Enhanced Grunt 8790 | -6/Cetus | Manufactured an Enhanced Grunt 8790 | -6/Cetus | Spotted Cetus Guard 8790 | -6/Cetus | Spotted Cetus Guard 8794 | -6/Cetus | Spotted Cetus Guard 8794 | -6/Cetus | Spotted Cetus Guard 8800 | -6/Cetus | Allies destroyed Cetus Guard 8806 | -6/Cetus | Allies destroyed Cetus Guard 8809 | -6/Cetus | Allies destroyed Cetus Guard 8812 | -6/Cetus | Allies destroyed Cetus Guard 8815 | -6/Cetus | Manufactured an Enhanced Grunt 8821 | -6/Cetus | Discovered exit to Factory (range 16) 8860 | -6/Cetus | Scared off Revision 17 8899 | -6/Cetus | System corruption reached 10% 8935 | -6/Cetus | Build established: Scavenger-Tank 9005 | -6/Cetus | Murdered A7 9009 | -6/Cetus | Extracted ID and sensor layout for unrecognized location from A7's data core 9043 | -6/Cetus | Entered Factory 9043 | -5/Factory | Accompanied by 13 allies 9043 | -5/Factory | Evolved 2 slots: Propulsion x1, Utility x1 9245 | -5/Factory | Lost 3 allies 9289 | -5/Factory | Lost 3 allies 9404 | -5/Factory | Discovered new exit (range 15) 9462 | -5/Factory | Retrieved Zion intel report: Unaware Analyses 9463 | -5/Factory | Zion Explosive Resupply teleported in 9473 | -5/Factory | Found Prototype Launcher 9473 | -5/Factory | Identified Smartbomb Launcher 9533 | -5/Factory | Zion Hacking Resupply teleported in 9578 | -5/Factory | Entered another Factory area 9578 | -4/Factory | Accompanied by 7 allies 9578 | -4/Factory | Evolved 2 slots: Propulsion x1, Weapon x1 10428 | -4/Factory | Retrieved Zion intel report: Depthwide Sectors/-4 10429 | -4/Factory | Zion Hacker squad teleported in 10559 | -4/Factory | Lost 3 allies 10629 | -4/Factory | Allied Derelicts emerged from ambush trap array 10701 | -4/Factory | Spotted B-86 Titan 10709 | -4/Factory | Identified exit to Garrison 10709 | -4/Factory | Entered Garrison 10709 | -4/Garrison | Accompanied by 1 ally 10734 | -4/Garrison | Triggered checkpoint 10759 | -4/Garrison | Garrison Relay disabled 10866 | -4/Garrison | Triggered checkpoint 10873 | -4/Garrison | Triggered checkpoint 10889 | -4/Garrison | Spotted B-86 Titan 10916 | -4/Garrison | Destroyed B-86 Titan 11037 | -4/Garrison | Triggered checkpoint 11146 | -4/Garrison | Triggered checkpoint 11289 | -4/Garrison | Discovered new exit (range 3) 11297 | -4/Garrison | Entered Factory 11616 | -4/Factory | Discovered new exit (range 16) 11644 | -4/Factory | Entered Research 11644 | -3/Research | Evolved 2 slots: Power x1, Utility x1 11772 | -3/Research | Found Prototype Device 11772 | -3/Research | Identified Exp. Thermal Shield 11792 | -3/Research | Zion Melee Resupply teleported in 11958 | -3/Research | Lost 4 parts (2p1u1w) 12088 | -3/Research | System corruption reached 10% 12144 | -3/Research | First assault squad dispatched 12149 | -3/Research | Garrison activated, responded to threat 12194 | -3/Research | Released all parts (11) 12204 | -3/Research | Core integrity fell below 50% 12224 | -3/Research | Lost 26 parts (6p4n5u11w) 12237 | -3/Research | Zion Heavy squad teleported in 12254 | -3/Research | Zion Heavy squad teleported in 12432 | -3/Research | Found Fusion Bomb Launcher 12463 | -3/Research | Lost 5 parts (1n4u) 12485 | -3/Research | Build established: Mutant 12517 | -3/Research | Core integrity fell below 20% 12539 | -3/Research | Destroyed by P-80 Master with Gamma Rifle Last Messages --------------- 12460_ Acquired System Shield. 12470_ System corrupted: Component data lost. 12493_ System corrupted: Substantial component data lost. 12512_ Sneak attack on H-77 Assassin. 12512_ Penetrated by Slug. 12512_ Hpw. Tractor Beam destroyed. 12513_ Slug penetrates Wall. 12513_ Penetrated by Slug. 12514_ H-77 Assassin Imp. Phase Shifter severed. 12516_ Slug penetrates Wall. 12517_ H-77 Assassin Coil Gun severed. 12519_ Slug penetrates Wall. 12519_ H-77 Assassin destroyed. 12520_ Wall collapses. 12520_ Acquired 5 matter. 12526_ H-77 Assassin Coil Gun severed. 12527_ System corrupted: Matter fused (-5). 12533_ Penetrated by Slug. 12537_ Slug penetrates Wall. Map ----- +----------------------------------------------------+ | ?????????????????????????????????????? | | ?????????????????????????????????????? | | ?????????????????????????????????????? | | ?????????????????????????????????????? | | ?????????????????????????????????????? | | ?????????????????????????????????????? | | ?????????????????????????????????????? | | ?????????????????????????????????????? | | ?????????????????????????????????????? | | ?????????????????????????????????????? | | ???????????????????????? ????????? | | ???????????????????????+ #???????? | | ???????????????????????# #???????? | | ???????????????????????# #???????? | | ???????????????????????# #???????? | | ???????????????????????# k #???????? | | ???????????????????????# ###?????? | | ???????????????????????+ #?????? | | ???????????????????????# #?????? | | ????????????#??????????# #?????? | | ???????????? ######### #?????? | | ??????????? #?????? | | ??????????? #?????? | | ???????????" [ #?????? | | ?????????? #?????? | | ?????????? @%[=p #?????? | | ?????????????????#########p/##p####### | | ????????????????????#= [!## # ! # | | ????????????????????# [!!## # # | | ????????????????????#! ## " # | | ????????????????????# ## # ! # | | ????????????????????####/##### # # | | ????????????????????+ + # | | ????????????????????# # ! # | | ??????????????????? # ] ##+#### | | ??????????????????? + ##?? | | ??????????????????### ##?? | | ????????????????##### ##?? | | ????????????????#### ] =##?? | | ???????????????? ## # # #### | | ??????????????????? # #%#### | | ??????????????????? ! = ! ## | | ??????????????????## ## | | ???????????????????## # = # | | ???????????????????## # # # | | ???????????????????## # ## | | ????????????######### # # | | ????????????######### ## # | | ????????????# * = # ## ## | | ????????????? # ## # ? | +----------------------------------------------------+ Best States ------------- Heat Dissipation 96 Energy Generation 55 Energy Capacity 770 Matter Stores 300 Matter Capacity 300 Sight Range 23 Robot Scan Range 16 Terrain Scan Density 210 Jamming Range 16 Power Amplification 30 Additional Mass Support 9 Armor Coverage 600 Resistance: TH 30 Resistance: EM 15 Power Shielding 66 Evasion (%) 61 Targeting Accuracy 5 Target Analysis 12 Core Analysis 6 Recoil Reduction 6 Particle Charging 20 Offensive Hacking 11 Defensive Hacking 12 Item Schematics ----------------- Huge Storage Unit | -10/Materials | Hacked Med. Treads | -7/Zion | Archive Imp. Trap Scanner | -7/Zion | Archive Matter Filter | -7/Zion | Archive Magnetic Acceleration Cannon | -7/Zion | Archive Microactuators | -7/Zion | Archive Kinecellerator | -7/Zion | Archive Imp. Proton Missile Launcher | -7/Zion | Archive Adv. Field Recycling Unit | -7/Zion | Archive Adv. Melee Analysis Suite | -7/Zion | Archive Spear | -7/Zion | Archive Hvy. Machine Gun | -7/Zion | Archive Weapon Cycler | -7/Zion | Archive Arm. Leg | -7/Zion | Archive Hvy. Shock Bomb Launcher | -7/Zion | Archive Robot Schematics ------------------ K-01 Serf | -7/Zion | Archive T-07 Excavator | -7/Zion | Archive S-27 Virus | -7/Zion | Archive Fabricated ------------ Nothing Repaired ---------- Nothing Studied --------- Lgt. Treads | -8/Materials | Hacked Antimatter Reactor | -4/Factory | Hacked Alien Tech Used ----------------- None Achievements -------------- The Robot, The Myth, The Legend Challenges ------------ None Game ------ Seed AuthchipBiometalObliterator Manual? 0 Play Time 02:17:45 Cumulative 169.2 hours Start 2026.04.25 @ 18:52:33 End 2026.04.25 @ 21:37:31 Sessions 1 Manual Loads 0 Difficulty Rogue Special Mode None Game No. 212 Rogue 212 Adventurer 0 Explorer 0 Win Type - Total 3 Types 3/0/0/0/0/0/0/0/0/0 Lore% 40 Gallery% 53 Achievement% 44 Wizard Run 0 Options --------- Layout 1 ASCII 0 Keyboard 0 Movement Mouse Keybinds 0 Fullscreen 2 Font 24/Smallcaps Map View 50x35 Zoom Use 12% Tactical HUD 1 Map Filters NONE Filters NONE Steam 1 RUN: 8d289f25-3178-4a35-aeb4-becb117b2ca6